bitfinex/quotes_ETHUSD_20241225
["timestamp","ask_amount","ask_price","bid_price","bid_amount"]
[1735130994303,0.76254397,3478.9,3478.0,2.87521]
[1735130994629,0.76254397,3478.9,3478.1,0.37663909]
[1735130994823,3.63704397,3478.9,3477.9,3.45169705]
[1735130995449,0.76254397,3478.9,3477.9,3.45169705]
[1735130995681,0.79847667,3478.9,3477.9,3.45169705]
[1735130997250,0.79847667,3478.9,3477.9,0.57643705]
[1735130997562,3.63707397,3478.9,3477.8,3.19011383]
[1735130997730,3.63707397,3478.9,3477.9,0.31901138]
[1735130998103,2.91050508,3478.8,3477.9,0.31901138]
[1735130998737,0.76254397,3478.9,3477.9,0.31901138]
[1735130998943,0.76254397,3478.9,3478.4,2.87481]
[1735130999261,0.76254397,3478.9,3478.0,2.87521]
[1735130999424,0.76254397,3478.9,3477.9,2.87529]
[1735130999752,0.76254397,3478.9,3478.2,2.87497]
[1735131000311,0.76254397,3478.9,3478.3,2.87496]
[1735131000661,0.76254397,3478.9,3478.4,0.287496]
[1735131000906,0.76254397,3478.9,3477.8,6.61810523]
[1735131001654,0.76254397,3478.9,3478.2,2.87502]
[1735131001890,0.76254397,3478.9,3478.0,2.87519]
[1735131002100,0.03593312,3478.8,3478.0,2.87519]
[1735131002301,0.76254397,3478.9,3478.1,2.87511]
[1735131002520,0.76254397,3478.9,3478.2,0.287511]
[1735131002815,0.76254397,3478.9,3478.3,2.87488]
[1735131002981,0.76254397,3478.9,3478.2,0.287511]
[1735131002982,0.76254397,3478.9,3478.5,2.87472]
[1735131003192,1.58903658,3480.3,3478.8,2.87455]
[1735131003193,0.7918,3479.7,3478.8,2.87455]
[1735131003411,0.7918,3479.7,3479.0,2.87435]
[1735131003567,0.7918,3479.7,3479.1,0.287435]
[1735131003966,0.03592494,3480.2,3478.2,0.42733935]
[1735131003967,0.7733,3479.5,3478.2,0.42733935]
[1735131004170,0.7733,3479.5,3477.8,0.9728346]
[1735131004171,0.7733,3479.0,3477.8,0.1739346]
[1735131004401,0.7733,3479.0,3477.8,0.7641106]
[1735131005719,0.7733,3479.0,3478.0,2.87516]
[1735131005931,0.80923496,3479.0,3478.0,2.87516]
[1735131006138,0.7733,3479.0,3478.0,2.87516]
[1735131006281,0.7733,3479.0,3478.0,3.23908706]
[1735131007034,3.64772,3479.0,3478.0,0.36392706]
[1735131007242,0.7733,3478.8,3477.8,0.7641106]
[1735131007388,0.7733,3478.8,3477.8,0.1739346]
[1735131007594,0.7733,3478.8,3477.8,3.0493046]
[1735131008913,0.7733,3478.8,3477.8,0.1739346]
[1735131009129,3.64793,3478.8,3477.8,0.1739346]
[1735131009331,2.87467,3478.7,3477.8,0.1739346]
[1735131009528,0.7733,3478.6,3477.8,0.1739346]
[1735131010433,3.64803,3478.6,3477.8,0.1739346]
[1735131011146,2.91081938,3478.5,3477.8,0.1739346]
[1735131011361,0.55,3478.3,3477.8,0.1739346]
[1735131011657,3.4252,3478.1,3477.8,0.1739346]
[1735131012408,0.55,3477.9,3477.8,0.1739346]
[1735131014313,1.3233,3477.9,3477.8,0.1739346]
[1735131014513,1.35924662,3477.9,3477.8,0.1739346]
[1735131014736,1.78269328,3477.9,3477.8,0.1739346]
[1735131014948,4.65798328,3477.9,3477.8,0.1739346]
[1735131015153,4.19859,3477.9,3477.8,0.1739346]
[1735131015870,0.7733,3477.2,3476.0,2.87681]
[1735131016023,0.80925425,3477.1,3475.9,0.14599703]
[1735131016224,0.80925425,3477.1,3476.0,2.87686]
[1735131016527,0.55,3477.0,3476.1,2.87676]
[1735131017457,0.7733,3476.9,3476.1,2.87676]
[1735131017779,0.7733,3476.9,3475.6,0.59265824]
[1735131017780,0.55,3476.8,3475.6,0.59265824]
[1735131017936,0.55,3476.6,3475.6,0.00287]
[1735131018136,0.7733,3476.3,3475.6,0.00287]
[1735131019231,0.55,3476.2,3475.6,0.00287]
[1735131020473,0.7598,3476.0,3475.6,0.00287]
[1735131023316,0.03596642,3475.9,3475.6,0.00287]
[1735131024166,0.7598,3475.7,3475.6,0.00287]
[1735131024318,1.3098,3475.7,3475.6,0.00287]
[1735131024762,1.728483,3475.7,3475.6,0.00287]
[1735131025670,0.7598,3475.7,3475.6,0.00287]
[1735131025972,0.7598,3476.4,3475.6,0.00287]
[1735131026479,3.63636,3476.4,3475.6,0.00287]
[1735131027057,0.55,3476.3,3475.6,0.00287]
[1735131028505,3.42663,3476.3,3475.6,0.00287]
[1735131028799,0.55,3476.3,3475.6,0.00287]
[1735131029009,0.7598,3477.0,3475.7,0.7504]
[1735131029154,0.7598,3477.0,3475.7,3.62746]
[1735131029350,0.7598,3477.0,3476.2,2.87669]
[1735131029606,0.7598,3477.0,3476.2,0.287669]
[1735131029803,0.7598,3477.0,3475.9,2.87695]
[1735131030007,0.7598,3477.0,3475.7,0.7504]
[1735131030157,0.03595428,3476.9,3475.7,3.6275]
[1735131030356,0.03595428,3476.9,3475.8,2.877]
[1735131030602,3.63586,3477.0,3475.9,2.87687]
[1735131030896,0.7598,3477.0,3476.1,2.87677]
[1735131031098,0.7598,3477.0,3476.0,0.362727]
[1735131031307,0.7598,3477.0,3476.2,2.87667]
[1735131031657,0.7598,3477.0,3476.3,2.87658]
[1735131031854,0.7598,3477.0,3476.1,2.87677]
[1735131032314,0.7598,3477.0,3476.2,0.3239497]
[1735131032513,0.0428485,3476.9,3476.2,3.2006097]
[1735131032716,0.0428485,3476.9,3476.8,2.8762]
[1735131032918,0.7598,3477.3,3476.8,2.8762]
[1735131033215,0.7598,3477.9,3476.7,0.7504]
[1735131033521,0.7598,3477.9,3477.3,2.87578]
[1735131033736,0.7598,3477.9,3477.0,2.87601]
[1735131033737,0.03594452,3477.8,3477.0,2.87601]
[1735131034021,0.7598,3477.9,3477.0,2.87601]
[1735131034174,0.7598,3477.9,3476.8,0.37504]
[1735131034369,1.123303,3477.9,3476.9,2.87608]
[1735131035243,2.8754,3477.8,3476.7,0.7504]
[1735131035440,0.7641,3477.5,3476.5,2.87644]
[1735131035594,0.7641,3477.5,3476.2,0.57083931]
[1735131035790,0.7641,3477.9,3476.8,0.8]
[1735131036042,0.7641,3478.6,3476.8,0.8]
[1735131036336,0.7641,3478.6,3477.2,0.8]
[1735131036503,0.7641,3478.6,3477.5,2.87562]
[1735131036706,0.7641,3478.6,3478.0,2.87517]
[1735131037694,0.7641,3479.1,3478.1,2.87512]
[1735131037895,0.7641,3479.1,3478.0,0.8]
[1735131038233,0.7641,3479.1,3478.4,2.87485]
[1735131039140,0.7641,3479.1,3478.0,0.8]
[1735131039141,3.63842,3479.1,3478.0,0.8]
[1735131039341,0.7641,3479.1,3478.0,1.22581018]
[1735131039546,0.7641,3479.1,3478.0,0.8]
[1735131039898,0.0321717,3479.0,3478.0,0.8]
[1735131040347,0.0321717,3479.0,3478.5,2.87473]
[1735131040650,0.7641,3479.1,3478.6,2.8747]
[1735131041194,0.7641,3479.7,3478.6,2.8747]
[1735131041424,0.03218231,3479.6,3478.7,2.87459]
[1735131041601,0.03218231,3479.6,3479.0,2.87436]
[1735131041826,0.7641,3479.7,3479.0,2.87436]
[1735131042030,0.7641,3479.7,3479.1,2.87429]
[1735131042351,0.03244317,3479.6,3478.7,0.8]
[1735131042527,0.03244317,3479.6,3479.3,2.8741]
[1735131042714,0.7641,3480.2,3479.3,3.16151]
[1735131042916,0.03243153,3479.5,3479.4,2.87405]
[1735131043247,0.7641,3480.2,3479.4,2.87405]
[1735131043452,0.03351431,3480.1,3479.5,2.87396]
[1735131043605,0.03351431,3480.1,3479.4,0.8]
[1735131044144,0.03351431,3480.1,3479.4,1.196154]
[1735131044849,0.03351431,3480.1,3479.8,2.8737]
[1735131045001,0.7641,3480.7,3479.4,1.196154]
[1735131045201,0.03496121,3480.6,3479.5,2.87396]
[1735131045403,0.03496121,3480.6,3479.6,2.87387]
[1735131045730,0.07087701,3480.6,3479.6,2.87387]
[1735131046058,0.03496121,3480.6,3479.6,2.87387]
[1735131046564,0.07087702,3480.6,3479.2,3.0]
[1735131046702,0.07087702,3480.6,3479.1,3.56853375]
[1735131046703,1.3141,3480.5,3479.1,0.56853375]
[1735131047109,0.0352486,3480.4,3479.1,0.71972853]
[1735131047718,0.0352486,3480.4,3479.8,2.87371]
[1735131048457,0.0352486,3480.4,3479.7,0.8]
[1735131048662,0.0352486,3480.4,3479.5,2.87389]
[1735131050227,0.0352486,3480.4,3479.4,0.7557]
[1735131050228,0.07097623,3480.4,3479.4,0.7557]
[1735131050452,2.87325,3480.4,3479.4,3.7557]
[1735131050654,0.03524255,3480.3,3479.4,3.7557]
[1735131050823,0.03524255,3480.3,3479.5,2.87389]
[1735131051028,0.7641,3480.5,3479.4,0.7557]
[1735131051366,0.03521696,3480.4,3479.4,3.7557]
[1735131051515,0.03521696,3480.4,3479.7,2.87373]
[1735131051710,0.03521696,3480.4,3479.4,3.7557]
[1735131052044,0.03521696,3480.4,3479.1,0.71972853]
[1735131052362,0.8153,3480.0,3478.6,3.63039]
[1735131052660,0.8153,3479.6,3478.6,3.63039]
[1735131052838,0.0352636,3479.5,3478.6,3.63039]
[1735131053158,0.40770196,3479.5,3478.4,2.87486]
[1735131053739,0.40770196,3479.5,3478.6,2.8747]
[1735131054930,0.40770196,3479.5,3478.0,0.14388175]
[1735131054931,2.87414,3479.3,3477.9,3.63098]
[1735131055156,0.03593176,3479.2,3477.9,3.63098]
[1735131055427,2.87434,3479.1,3477.9,3.63098]
[1735131055666,0.03513942,3479.0,3477.9,1.118798]
[1735131055829,0.8153,3478.9,3478.0,2.8752]
[1735131056031,0.03471226,3478.8,3477.5,0.7557]
[1735131056230,0.03471226,3478.8,3477.8,2.87529]
[1735131056528,0.07064712,3478.8,3477.8,2.87529]
[1735131056742,0.03471226,3478.8,3477.8,0.363099]
[1735131056947,0.03471226,3478.8,3475.3,0.88276997]
[1735131056948,1.0653,3475.4,3475.3,0.88276997]
[1735131057169,1.3653,3475.4,3475.3,0.80514066]
[1735131057368,1.3988485,3475.4,3475.3,0.80514066]
[1735131057569,1.3988485,3475.4,3474.8,2.96609388]
[1735131057570,0.8153,3475.4,3474.8,2.96609388]
[1735131057900,1.3653,3476.3,3475.3,4.56250142]
[1735131058215,0.8153,3476.3,3475.2,2.8775]
[1735131058353,0.03183171,3476.2,3474.9,0.29660939]
[1735131058694,0.8153,3476.3,3475.0,4.65124544]
[1735131058895,0.8153,3476.3,3475.1,0.79139487]
[1735131059053,0.8153,3476.3,3475.2,1.7303455]
[1735131059583,0.8153,3476.3,3474.7,0.58005801]
[1735131059760,0.8153,3476.3,3475.3,2.87744]
[1735131059964,4.18407456,3477.3,3474.8,3.7557]
[1735131059965,0.8153,3476.7,3474.8,3.7557]
[1735131060187,0.03057534,3476.2,3476.0,2.87686]
[1735131060498,2.87613,3476.9,3476.1,35.0]
[1735131060936,4.28721864,3477.2,3476.1,35.0]
[1735131061204,0.43231765,3477.1,3476.1,35.0]
[1735131061556,0.8153,3477.2,3476.1,35.0]
[1735131062070,0.55,3477.1,3476.1,35.0]
[1735131067225,0.8153,3477.2,3476.5,2.87641]
[1735131067374,0.765,3477.8,3476.7,2.87626]
[1735131067710,0.765,3477.8,3476.4,2.87649]
[1735131067711,0.02861034,3477.7,3476.4,2.87649]
[1735131068015,0.36690103,3477.7,3476.5,0.46940489]
[1735131068312,0.36690103,3477.7,3476.5,3.34584489]
[1735131068683,0.55,3477.6,3476.5,0.46940489]
[1735131068883,0.55,3477.6,3476.4,2.87647]
[1735131069575,2.8758,3477.3,3476.3,0.56973983]
[1735131069808,2.8758,3477.3,3475.9,0.14612547]
[1735131069809,0.55,3477.2,3476.0,3.0]
[1735131070102,2.876,3477.1,3476.0,3.0]
[1735131070308,2.9046063,3477.1,3476.0,3.0]
[1735131070605,3.29796063,3477.1,3476.0,3.0]
[1735131071400,3.29796063,3477.1,3476.0,3.57786251]
[1735131071577,0.42196063,3477.1,3476.0,0.57786251]
[1735131071786,0.42196063,3477.1,3476.2,2.87669]
[1735131072337,0.42196063,3477.1,3476.3,2.87653]
[1735131072539,0.765,3477.4,3476.0,3.45466251]
[1735131072706,0.765,3477.4,3476.4,2.87653]
[1735131073043,0.02916744,3477.3,3476.4,2.87653]
[1735131073789,0.02916744,3477.3,3476.0,0.57786251]
[1735131074045,0.02916744,3477.3,3476.6,2.8763]
[1735131074207,0.55,3477.7,3476.6,1.09043]
[1735131074410,0.02916653,3477.2,3476.6,0.8028]
[1735131074725,0.02916562,3477.1,3476.6,0.8028]
[1735131074929,0.55,3477.7,3476.5,2.87639]
[1735131075126,0.55,3477.7,3476.6,2.87636]
[1735131075291,0.02917018,3477.6,3476.6,2.87636]
[1735131075496,0.4511262,3477.6,3476.6,2.87636]
[1735131076043,0.4511262,3477.6,3476.1,2.87673]
[1735131076258,0.55,3477.3,3475.8,0.8028]
[1735131076460,0.765,3476.9,3475.8,2.87702]
[1735131076799,0.02943139,3476.8,3475.8,2.87702]
[1735131077016,0.57943139,3476.8,3475.4,3.8028]
[1735131077218,0.765,3476.7,3475.3,0.56972671]
[1735131077557,0.55,3476.3,3475.2,2.87752]
[1735131077761,0.342654,3476.2,3475.2,2.87752]
[1735131077898,0.37208362,3476.2,3475.2,2.87752]
[1735131078098,0.37208362,3476.2,3475.3,2.87743]
[1735131078545,0.37208362,3476.2,3475.1,0.57905893]
[1735131078754,0.02942962,3476.2,3475.5,2.87727]
[1735131078924,0.55,3476.5,3475.5,2.87727]
[1735131079124,0.02942871,3476.1,3475.5,2.87727]
[1735131080951,0.02836058,3475.8,3474.8,2.87779]
[1735131081343,0.02836058,3475.8,3474.3,0.1739346]
[1735131081344,0.55,3475.6,3474.5,2.87804]
[1735131081864,0.8292,3475.4,3474.3,3.0521946]
[1735131082074,3.70657,3475.4,3474.3,3.0521946]
[1735131082247,0.06390927,3475.3,3474.3,3.0521946]
[1735131082573,0.4409572,3475.3,3474.3,3.0521946]
[1735131083559,0.40498406,3475.3,3474.6,2.87802]
[1735131083779,0.02793613,3475.3,3474.3,0.1739346]
[1735131084091,0.02793613,3475.3,3474.8,2.87778]
[1735131084248,0.02793613,3475.3,3475.2,2.87753]
[1735131084651,0.8061,3475.9,3475.3,2.8774]
[1735131085032,0.02740237,3475.8,3474.8,2.8778]
[1735131085252,0.02740237,3475.8,3474.9,0.28778]
[1735131085670,0.02740237,3475.8,3475.1,2.87753]
[1735131086190,0.06336592,3475.8,3475.1,2.87753]
[1735131086483,0.8061,3475.9,3475.1,2.87753]
[1735131086778,0.0275419,3475.7,3475.1,2.87753]
[1735131086930,0.8061,3475.9,3475.1,2.87753]
[1735131087126,0.02754098,3475.6,3475.1,2.87753]
[1735131087401,0.03596583,3475.8,3475.1,2.87753]
[1735131087533,0.8061,3475.9,3474.9,0.28778]
[1735131087728,0.02754222,3475.7,3475.2,2.8775]
[1735131088035,0.8061,3475.9,3475.2,2.8775]
[1735131088583,0.02754313,3475.8,3474.9,0.86450638]
[1735131088750,0.02754313,3475.8,3475.1,3.0]
[1735131089082,0.8061,3475.9,3475.4,2.87733]
[1735131089375,0.02754055,3475.8,3475.4,2.87733]
[1735131089580,0.8061,3476.3,3475.2,0.7566]
[1735131089779,0.8061,3476.3,3475.5,2.8772]
[1735131090129,0.02809733,3476.2,3475.5,2.8772]
[1735131091238,0.8061,3476.3,3475.5,2.8772]
[1735131092524,0.8061,3476.3,3475.5,2.87721]
[1735131092912,0.02809733,3476.2,3475.2,2.87753]
[1735131093112,0.02809733,3476.2,3475.3,0.35517616]
[1735131093327,0.8061,3476.3,3475.0,3.67423164]
[1735131093530,0.8061,3476.3,3475.2,3.0]
[1735131093699,0.02820102,3476.2,3476.0,2.8768]
[1735131093901,0.8061,3476.3,3476.0,2.8768]
[1735131094528,0.8061,3476.3,3475.6,2.87719]
[1735131094529,0.7677,3477.2,3475.3,0.7663]
[1735131094701,0.02825584,3476.2,3476.1,2.87678]
[1735131094900,0.7677,3477.2,3475.6,3.0]
[1735131095106,0.7677,3477.2,3476.2,2.87663]
[1735131095505,0.02843686,3477.1,3476.2,2.87663]
[1735131095853,0.55,3477.1,3476.4,2.87652]
[1735131096339,0.02871241,3477.0,3476.2,2.87668]
[1735131096551,0.57871241,3477.0,3475.6,3.0]
[1735131096719,0.55,3476.8,3475.6,0.50204567]
[1735131096916,0.03595819,3476.7,3475.9,2.87694]
[1735131097132,0.02870967,3476.7,3476.0,2.87686]
[1735131097316,0.02870967,3476.7,3476.2,2.8767]
[1735131097540,0.7677,3476.9,3475.7,2.87711]
[1735131097752,0.02893338,3476.6,3476.5,2.87645]
[1735131098124,0.7677,3476.9,3476.6,2.87634]
[1735131098328,0.7677,3476.9,3476.1,2.87673]
[1735131098529,0.02890641,3476.8,3476.5,2.87645]
[1735131099430,0.7677,3476.9,3476.5,2.87645]
[1735131099874,0.02897231,3476.8,3476.5,2.87645]
[1735131100234,0.7677,3476.9,3476.5,2.87645]
[1735131100435,0.02896884,3476.7,3475.5,1.35606567]
[1735131100631,0.55,3476.8,3475.9,5.87687]
[1735131100831,0.969374,3476.8,3475.9,5.87687]
[1735131101061,0.02908967,3476.7,3475.9,5.87687]
[1735131101257,0.02908967,3476.7,3476.0,2.87686]
[1735131101459,0.02908967,3476.7,3475.7,3.0]
[1735131101668,0.02908967,3476.7,3475.9,3.0]
[1735131101859,0.02908967,3476.7,3476.1,2.87678]
[1735131102065,0.55,3476.8,3476.1,2.87678]
[1735131102269,0.02908876,3476.6,3476.1,2.87678]
[1735131102481,0.02908967,3476.7,3476.1,2.87678]
[1735131102686,0.02908784,3476.5,3476.2,2.87665]
[1735131102993,0.029087,3476.4,3476.2,2.87665]
[1735131103195,1.95177456,3476.9,3476.2,2.87665]
[1735131103397,0.02908602,3476.3,3475.9,2.87695]
[1735131103587,1.95177456,3476.9,3476.4,2.87652]
[1735131104171,1.18407456,3476.8,3476.4,2.87652]
[1735131105182,0.7677,3476.9,3476.4,2.87652]
[1735131105388,0.03595425,3476.8,3476.0,2.87678]
[1735131105589,0.19877288,3476.7,3476.0,2.87678]
[1735131106491,1.38284744,3476.7,3476.1,2.87676]
[1735131107110,0.7668,3476.6,3476.1,2.87676]
[1735131107470,0.7668,3476.6,3475.7,3.0]
[1735131107670,0.7668,3476.6,3476.4,2.87648]
[1735131108074,1.18407456,3476.8,3475.8,0.7752]
[1735131108253,1.18407456,3476.8,3475.9,0.37752]
[1735131108456,1.18407456,3476.8,3476.6,2.87633]
[1735131108659,1.18407456,3476.8,3475.9,0.37752]
[1735131108853,1.18407456,3476.8,3476.4,2.87646]
[1735131109077,0.7668,3477.0,3476.0,2.87686]
[1735131109292,0.7668,3477.0,3476.5,2.87644]
[1735131111514,0.7668,3477.0,3475.9,2.87691]
[1735131111676,0.03595659,3476.9,3476.0,2.87684]
[1735131112569,0.03595659,3476.9,3475.8,3.0]
[1735131113110,1.49320135,3476.8,3476.0,2.87679]
[1735131113269,0.52561443,3476.7,3476.0,2.87679]
[1735131114109,1.18407456,3476.9,3475.7,2.87711]
[1735131114310,1.18407456,3476.9,3475.8,2.87703]
[1735131114464,1.18407456,3476.9,3476.5,2.87641]
[1735131115384,0.7668,3477.0,3476.5,2.87641]
[1735131116017,0.7668,3477.0,3475.8,2.87696]
[1735131116018,0.03595393,3476.9,3475.8,2.87696]
[1735131116170,0.55,3476.8,3475.8,2.87696]
[1735131116366,0.42288739,3476.7,3475.8,2.87696]
[1735131117103,0.42288739,3476.7,3475.9,2.87694]
[1735131118409,0.8236,3476.2,3474.8,1.98556085]
[1735131118628,0.8236,3476.2,3474.9,2.87778]
[1735131118828,0.02902671,3476.1,3475.7,2.87707]
[1735131120701,0.02902671,3476.1,3475.8,2.87699]
[1735131121298,0.02902671,3476.1,3476.0,2.87686]
[1735131122011,0.02902671,3476.1,3476.0,3.164546]
[1735131122217,0.8236,3476.6,3476.1,2.87672]
[1735131122415,0.8236,3476.6,3476.2,2.87669]
[1735131122645,0.8236,3476.6,3476.0,0.287686]
[1735131122826,0.8236,3476.6,3476.0,2.87685]
[1735131123229,0.02862723,3476.5,3476.4,2.87651]
[1735131123438,2.00767456,3477.0,3476.3,2.87657]
[1735131123765,2.00767456,3477.0,3476.3,2.87656]
[1735131123967,0.0287691,3476.9,3476.3,2.87656]
[1735131124357,0.06472302,3476.9,3476.3,2.87656]
[1735131125987,0.0287691,3476.9,3476.3,2.87656]
[1735131127240,0.0287691,3476.9,3476.8,2.8762]
[1735131128565,1.18407456,3477.5,3476.5,2.87638]
[1735131128829,1.18407456,3477.5,3476.9,2.87607]
[1735131129363,2.67880963,3477.5,3476.9,2.87607]
[1735131129542,2.67880963,3477.5,3476.4,3.5634249]
[1735131129743,2.67880963,3477.5,3477.4,2.87571]
[1735131130142,1.77611185,3477.7,3477.4,2.87571]
[1735131130143,1.18407456,3477.7,3477.4,2.87571]
[1735131131014,0.7794,3477.9,3477.1,0.7537]
[1735131131217,1.18407456,3478.1,3478.0,2.87521]
[1735131131350,1.18407456,3478.1,3478.0,3.62891]
[1735131132049,1.18407456,3478.1,3478.0,6.62891]
[1735131132484,1.18407456,3478.8,3478.3,2.87496]
[1735131133526,2.87491,3478.4,3477.4,1.18746085]
[1735131133668,0.4098915,3478.7,3477.4,1.18746085]
[1735131133669,0.7794,3478.0,3477.4,1.18746085]
[1735131134215,0.02555475,3477.9,3477.4,1.18746085]
[1735131134814,0.02555475,3477.9,3477.1,5.24278676]
[1735131134815,0.02555475,3477.9,3477.1,2.87594]
[1735131137020,0.02555475,3477.9,3477.1,2.87588]
[1735131138434,0.8232,3477.8,3477.1,2.87595]
[1735131138588,0.84875345,3477.8,3477.1,2.87595]
[1735131138790,0.8232,3477.8,3476.8,0.56231234]
[1735131138999,0.8232,3477.8,3477.1,2.87593]
[1735131139606,0.8232,3477.8,3477.2,2.87584]
[1735131140143,0.03594641,3477.7,3477.0,2.87603]
[1735131140505,0.8232,3477.8,3477.1,2.87592]
[1735131141742,0.8232,3477.8,3476.8,0.95366149]
[1735131141743,0.8232,3477.8,3476.8,0.56231234]
[1735131141922,0.8232,3478.2,3476.9,3.68292]
[1735131142121,0.8232,3478.2,3477.7,2.87545]
[1735131143316,0.8232,3478.2,3477.5,2.87558]
[1735131144612,0.8232,3478.2,3477.3,2.87579]
[1735131145129,0.03594313,3478.1,3477.3,2.87579]
[1735131145829,0.8232,3478.2,3477.3,2.87579]
[1735131146145,0.8232,3478.2,3477.0,2.87596]
[1735131146146,0.03594313,3478.1,3477.0,2.87596]
[1735131146299,0.55,3478.0,3477.1,2.87595]
[1735131146495,0.55,3478.1,3477.1,2.87595]
[1735131147027,0.55,3478.1,3476.9,0.8068]
[1735131147756,0.55,3478.1,3477.1,2.87588]
[1735131149467,0.55,3478.1,3476.9,0.8068]
[1735131149611,0.8232,3478.2,3477.4,2.87571]
[1735131149815,0.8232,3478.2,3476.9,1.54581045]
[1735131150030,0.8232,3478.2,3477.6,2.87553]
[1735131150458,0.8232,3478.2,3477.2,2.87587]
[1735131150665,0.8232,3478.2,3477.9,2.87523]
[1735131154389,1.3242,3478.8,3477.9,3.162753]
[1735131154546,1.3242,3478.8,3477.9,0.287523]
[1735131155390,1.3242,3478.8,3477.8,2.8753]
[1735131156238,1.3242,3478.8,3477.9,2.87524]
[1735131156999,0.7742,3477.9,3476.9,4.42471045]
[1735131157151,0.40088874,3477.8,3476.9,2.8761]
[1735131157338,0.03594774,3477.8,3476.9,2.8761]
[1735131157787,0.03594774,3477.8,3477.0,2.87603]
[1735131157986,0.55,3477.7,3476.6,1.18746085]
[1735131158281,0.55,3477.3,3476.7,1.18746085]
[1735131158484,0.7742,3477.2,3476.7,1.18746085]
[1735131158783,0.8101535,3477.2,3476.7,1.18746085]
[1735131159139,0.55,3477.1,3476.7,1.18746085]
[1735131159640,0.55,3477.1,3476.4,2.87651]
[1735131159872,0.55,3477.1,3476.2,2.87668]
[1735131160034,0.55,3477.1,3476.3,3.0]
[1735131160862,0.55,3477.1,3476.3,2.87656]
[1735131161839,0.7742,3477.2,3476.6,2.87634]
[1735131162284,0.7742,3477.2,3476.7,2.87628]
[1735131165076,0.7742,3477.2,3476.8,2.8762]
[1735131165413,0.7742,3477.2,3476.9,0.28762]
[1735131166178,0.7742,3477.2,3477.0,2.876]
[1735131166510,0.55,3477.8,3476.6,0.8096]
[1735131166719,0.55,3477.6,3476.5,2.8764]
[1735131167809,0.55,3477.6,3476.8,2.87616]
[1735131168218,0.03595043,3477.5,3476.8,2.87616]
[1735131168566,0.45950347,3477.5,3476.8,2.87616]
[1735131169302,0.7742,3477.3,3476.5,2.87644]
[1735131170108,0.03595341,3477.2,3476.5,2.87644]
[1735131170619,0.03595341,3477.2,3476.3,2.8766]
[1735131171123,0.03595341,3477.2,3476.5,2.87643]
[1735131171415,0.7742,3477.3,3476.5,3.19859183]
[1735131172416,0.7742,3477.3,3476.5,0.32216183]
[1735131172571,0.7742,3477.3,3476.9,2.87609]
[1735131173113,0.7742,3477.3,3476.7,2.87626]
[1735131173614,0.03595037,3477.2,3476.7,2.87626]
[1735131174144,0.7742,3477.3,3476.7,2.87626]
[1735131174356,0.7742,3477.3,3476.8,2.87616]
[1735131174556,0.7742,3477.3,3476.9,0.287616]
[1735131176854,0.7742,3477.3,3476.9,3.163726]
[1735131177507,1.3533,3477.8,3476.9,3.163726]
[1735131178454,0.55,3477.6,3476.7,2.87626]
[1735131178611,0.8033,3477.4,3476.7,2.87626]
[1735131178813,0.03595035,3477.3,3476.7,2.87626]
[1735131180789,0.8033,3477.4,3476.8,2.8762]
[1735131181053,0.03595031,3477.3,3476.8,2.8762]
[1735131181269,0.8033,3477.4,3476.8,2.8762]
[1735131181445,0.03595032,3477.3,3476.8,2.8762]
[1735131181678,0.8033,3477.4,3476.8,2.8762]
[1735131182647,0.8033,3477.4,3476.9,2.87605]
[1735131183057,0.8033,3477.4,3477.1,2.87594]
[1735131183505,1.18407456,3477.6,3477.1,2.87594]
[1735131183917,1.98737456,3477.8,3477.1,2.87594]
[1735131184708,1.98737456,3477.8,3476.9,2.87611]
[1735131184903,1.98737456,3477.8,3476.9,3.192483]
[1735131185203,0.8033,3477.8,3476.9,3.192483]
[1735131185419,0.8033,3477.8,3477.0,2.87602]
[1735131187631,0.8033,3477.8,3477.0,0.8154]
[1735131187809,0.8033,3477.8,3477.1,2.87595]
[1735131188124,0.8033,3477.8,3477.5,2.87554]
[1735131188490,0.8033,3477.8,3476.9,0.316373]
[1735131188693,0.8033,3477.8,3476.5,5.87637]
[1735131189023,0.55,3477.7,3476.8,7.06361085]
[1735131189396,0.55,3477.7,3476.9,2.87609]
[1735131189780,0.55,3477.7,3476.8,4.18746085]
[1735131189977,0.8033,3477.8,3476.8,4.18746085]
[1735131190224,0.8033,3477.8,3477.4,2.87569]
[1735131190427,1.98737456,3477.8,3477.1,3.0]
[1735131190593,1.18407456,3477.8,3477.7,2.87546]
[1735131191980,0.777,3478.2,3477.7,2.87546]
[1735131192881,0.777,3478.2,3477.8,2.87536]
[1735131193077,0.777,3478.5,3478.0,2.87521]
[1735131193523,0.777,3478.5,3478.2,2.87502]
[1735131193697,1.18407456,3478.6,3477.9,2.87529]
[1735131194097,1.18407456,3478.6,3478.5,2.8748]
[1735131194586,1.96107456,3478.9,3478.3,2.87494]
[1735131195945,0.777,3478.9,3478.3,2.87494]
[1735131196290,0.777,3478.9,3478.4,2.87487]
[1735131196841,1.96107456,3479.2,3478.3,0.575008]
[1735131197050,1.18407456,3479.2,3478.4,0.8154]
[1735131197817,1.18407456,3479.2,3478.7,3.0]
[1735131198245,1.18407456,3479.2,3478.9,2.87441]
[1735131198555,1.18407456,3479.2,3479.0,2.87434]
[1735131198723,0.777,3479.5,3479.0,2.87434]
[1735131199111,0.02555593,3479.4,3479.0,2.87434]
[1735131204620,0.02555593,3479.4,3479.0,0.7753]
[1735131204779,0.02555593,3479.4,3479.3,2.87414]
[1735131204984,0.8283,3480.2,3479.3,0.652382]
[1735131205319,0.8283,3480.2,3479.0,3.7753]
[1735131205525,0.8283,3480.2,3479.7,2.87373]
[1735131205704,0.8283,3480.2,3479.6,2.87388]
[1735131206019,0.03591915,3480.1,3479.0,0.7753]
[1735131206223,0.8283,3480.2,3479.3,2.87412]
[1735131206421,0.8283,3480.2,3478.7,4.33754853]
[1735131206620,0.8283,3480.2,3479.4,2.87398]